bitfinex/quotes_BTCUSD_20220304
["timestamp","ask_amount","ask_price","bid_price","bid_amount"]
[1646425148096,0.33929471,39546.0,39542.0,0.06326718]
[1646425148296,0.38929471,39546.0,39542.0,0.06326718]
[1646425148496,0.38929471,39546.0,39542.0,0.06338264]
[1646425148698,0.19518086,39534.0,39531.0,0.93008832]
[1646425148896,0.19518086,39534.0,39533.0,0.22095542]
[1646425149101,0.24518086,39534.0,39533.0,0.22095542]
[1646425150300,0.24518086,39534.0,39533.0,0.34748342]
[1646425150499,0.24518086,39534.0,39533.0,0.45734464]
[1646425153249,0.19518086,39534.0,39533.0,0.45734464]
[1646425153449,0.19518086,39534.0,39533.0,0.77960632]
[1646425153750,0.05,39546.0,39538.0,0.06325846]
[1646425153947,0.32514896,39550.0,39538.0,0.06325846]
[1646425153948,0.01323508,39550.0,39538.0,0.06325846]
[1646425154349,0.06323508,39550.0,39539.0,0.0466]
[1646425154550,0.31230514,39549.0,39539.0,0.0466]
[1646425154749,0.31230514,39549.0,39548.0,0.25553584]
[1646425154750,0.05,39549.0,39548.0,0.25553584]
[1646425155008,0.15952421,39547.0,39541.0,0.126481]
[1646425155207,0.15952421,39547.0,39545.0,0.126488]
[1646425155405,0.15952421,39547.0,39546.0,0.0466]
[1646425155805,0.15952421,39547.0,39546.0,0.3233471]
[1646425156004,0.05,39554.0,39547.0,1.4]
[1646425156306,0.0001661,39559.0,39547.0,1.4]
[1646425156307,0.0001661,39559.0,39548.0,0.0466]
[1646425156504,0.1580253,39565.0,39548.0,0.0466]
[1646425156709,0.1580253,39565.0,39557.0,0.25741456]
[1646425156905,0.00016611,39559.0,39553.0,0.0466]
[1646425157305,0.16419769,39557.0,39553.0,0.0466]
[1646425157906,0.01531042,39558.0,39553.0,0.0466]
[1646425158308,0.02505,39556.0,39551.0,0.00010822]
[1646425158511,0.397931,39555.0,39551.0,0.00010822]
[1646425158756,0.372881,39553.0,39551.0,0.00010822]
[1646425158952,0.32972812,39554.0,39546.0,0.02739]
[1646425158953,0.44662514,39552.0,39546.0,0.02739]
[1646425159152,0.25392278,39552.0,39546.0,0.02739]
[1646425159458,0.27312954,39548.0,39546.0,0.02739]
[1646425159654,0.32312954,39548.0,39546.0,0.02739]
[1646425160455,0.15531042,39547.0,39546.0,0.02739]
[1646425161055,0.01531042,39547.0,39546.0,0.02739]
[1646425161258,0.01531042,39547.0,39546.0,0.0411865]
[1646425161854,0.01531042,39547.0,39546.0,0.37029205]
[1646425162415,0.01531042,39547.0,39546.0,0.0877865]
[1646425163215,0.3286356,39547.0,39546.0,0.0411865]
[1646425163614,0.7515166,39547.0,39546.0,0.0411865]
[1646425163814,0.3286356,39547.0,39546.0,0.0411865]
[1646425165015,0.01950696,39544.0,39532.0,0.7282]
[1646425165216,0.23767838,39541.0,39536.0,0.06326]
[1646425165615,0.23767838,39541.0,39539.0,0.12652146]
[1646425166245,0.01531042,39543.0,39539.0,0.12652146]
[1646425166447,0.01531042,39543.0,39537.0,0.12652]
[1646425166646,0.01531042,39543.0,39539.0,0.24480448]
[1646425167252,0.01531042,39543.0,39540.0,0.063259]
[1646425168247,0.01531042,39543.0,39540.0,0.008739]
[1646425168659,0.59186307,39537.0,39533.0,0.173126]
[1646425168948,0.01531042,39536.0,39533.0,0.173126]
[1646425170100,0.59612845,39536.0,39534.0,0.12652882]
[1646425170299,0.28773145,39536.0,39534.0,0.12652882]
[1646425170501,0.59612845,39536.0,39534.0,0.12652882]
[1646425170706,0.59612845,39536.0,39531.0,0.06336217]
[1646425170707,0.308397,39535.0,39531.0,9.517e-05]
[1646425170903,0.06425785,39533.0,39524.0,0.25303504]
[1646425171101,0.308397,39535.0,39524.0,0.25303504]
[1646425171301,0.308397,39535.0,39531.0,9.517e-05]
[1646425172099,0.01531042,39534.0,39526.0,0.35031106]
[1646425172300,0.30253999,39529.0,39526.0,0.002]
[1646425172508,0.308397,39528.0,39526.0,0.002]
[1646425172703,0.497931,39527.0,39520.0,0.001]
[1646425172905,0.7575,39523.0,39507.0,0.202]
[1646425173105,0.78255,39515.0,39507.0,0.002]
[1646425173302,0.15,39516.0,39502.0,0.001]
[1646425173303,0.78255,39511.0,39502.0,0.001]
[1646425173501,0.42823154,39512.0,39502.0,0.001]
[1646425173502,0.02505,39507.0,39502.0,0.001]
[1646425173752,0.397931,39503.0,39502.0,0.001]
[1646425173952,0.706328,39503.0,39502.0,0.001]
[1646425174150,0.397931,39503.0,39502.0,0.001]
[1646425174649,0.08223258,39504.0,39502.0,0.001]
[1646425174650,0.40797884,39504.0,39502.0,0.001]
[1646425174849,0.02505,39501.0,39498.0,0.001]
[1646425175055,0.02505,39501.0,39494.0,0.201]
[1646425175056,0.02505,39498.0,39491.0,0.002]
[1646425175254,0.02505,39496.0,39491.0,0.002]
[1646425175450,0.78255,39494.0,39491.0,0.002]
[1646425175654,0.02505,39493.0,39491.0,0.002]
[1646425175852,0.372881,39492.0,39491.0,0.002]
[1646425176050,0.308397,39502.0,39491.0,0.002]
[1646425176252,0.01531042,39503.0,39491.0,0.002]
[1646425176659,0.04036042,39503.0,39491.0,0.002]
[1646425176853,0.16381736,39497.0,39491.0,0.002]
[1646425177054,0.06780065,39495.0,39491.0,0.002]
[1646425177254,0.372881,39494.0,39493.0,8.573e-05]
[1646425177507,0.308397,39494.0,39493.0,8.573e-05]
[1646425177711,0.06780065,39495.0,39493.0,8.573e-05]
[1646425177907,0.372881,39494.0,39493.0,8.573e-05]
[1646425178108,0.29167983,39494.0,39493.0,8.573e-05]
[1646425178409,0.29167983,39494.0,39491.0,0.002]
[1646425178410,0.372881,39493.0,39491.0,0.002]
[1646425178610,1.4624716,39492.0,39491.0,0.002]
[1646425178808,0.7049716,39492.0,39491.0,0.002]
[1646425179214,0.7049716,39492.0,39464.0,0.0168621]
[1646425179215,1.4,39490.0,39464.0,0.0168621]
[1646425179417,0.372881,39481.0,39460.0,0.4479]
[1646425179612,0.372881,39481.0,39457.0,0.001]
[1646425179613,0.15,39478.0,39458.0,0.002]
[1646425179812,0.3070406,39477.0,39458.0,0.002]
[1646425180011,0.02505,39478.0,39458.0,0.002]
[1646425180215,0.06620362,39470.0,39458.0,0.002]
[1646425180412,0.3070406,39479.0,39458.0,0.002]
[1646425180416,0.0466,39479.0,39458.0,0.002]
[1646425180614,0.1,39481.0,39458.0,0.002]
[1646425181250,0.12165,39483.0,39461.0,0.12789071]
[1646425181251,0.29233325,39474.0,39461.0,0.12789071]
[1646425181750,0.008739,39474.0,39459.0,0.12677135]
[1646425182248,0.008739,39474.0,39459.0,0.06338566]
[1646425182650,0.008739,39474.0,39467.0,0.20834808]
[1646425182853,0.008739,39474.0,39459.0,0.05838566]
[1646425183151,0.008739,39474.0,39458.0,0.29671601]
[1646425183348,0.008739,39474.0,39458.0,0.29171601]
[1646425183651,0.3150466,39473.0,39458.0,0.29171601]
[1646425183849,0.4437919,39473.0,39458.0,0.29171601]
[1646425184049,0.3150466,39473.0,39457.0,0.4759]
[1646425184250,0.372881,39472.0,39457.0,0.4759]
[1646425184449,0.372881,39472.0,39462.0,7.507e-05]
[1646425184450,0.372881,39471.0,39462.0,7.507e-05]
[1646425184904,0.0146535,39470.0,39457.0,0.47527707]
[1646425185102,0.31980934,39472.0,39457.0,0.47527707]
[1646425185298,0.28279278,39466.0,39457.0,0.47527707]
[1646425185702,0.28279278,39466.0,39457.0,0.00037707]
[1646425185703,0.69205083,39465.0,39457.0,0.00037707]
[1646425185899,0.01604912,39464.0,39457.0,0.00037707]
[1646425186099,0.67737992,39465.0,39457.0,0.00037707]
[1646425186100,0.12363364,39458.0,39457.0,0.00037707]
[1646425186300,0.372881,39458.0,39457.0,0.00037707]
[1646425186701,0.67737992,39458.0,39457.0,0.00037707]
[1646425186899,0.372881,39458.0,39457.0,0.00037707]
[1646425187098,0.67737992,39458.0,39457.0,0.00037707]
[1646425187498,0.69269034,39458.0,39457.0,0.00037707]
[1646425187699,0.78269034,39458.0,39457.0,0.00037707]
[1646425188105,0.47819142,39458.0,39457.0,0.05037707]
[1646425188300,1.4,39457.0,39451.0,0.002]
[1646425188506,1.4,39457.0,39441.0,0.001]
[1646425188507,1.4,39455.0,39441.0,0.001]
[1646425188763,1.4,39455.0,39441.0,0.00017898]
[1646425188764,0.64172878,39447.0,39441.0,0.00017898]
[1646425188961,0.372915,39445.0,39441.0,0.00017898]
[1646425190460,0.01531042,39444.0,39441.0,0.00017898]
[1646425190668,0.01531042,39444.0,39442.0,0.25555883]
[1646425190861,0.01531042,39444.0,39442.0,0.24536483]
[1646425191263,0.01531042,39444.0,39441.0,0.00017898]
[1646425192261,0.01531042,39444.0,39442.0,0.20913031]
[1646425192895,0.01531042,39444.0,39441.0,0.00017898]
[1646425193698,0.01531042,39449.0,39441.0,0.00017898]
[1646425193899,0.01531042,39449.0,39444.0,0.23429966]
[1646425194112,0.372915,39448.0,39444.0,0.23429966]
[1646425194299,0.01531042,39449.0,39444.0,0.23429966]
[1646425194501,0.01531042,39449.0,39445.0,0.010187]
[1646425194701,0.01531042,39449.0,39441.0,0.00017898]
[1646425194702,0.63347968,39449.0,39441.0,0.00017898]
[1646425194900,0.01531042,39449.0,39441.0,0.00017898]
[1646425195501,0.01531042,39449.0,39442.0,0.005188]
[1646425195700,0.01531042,39449.0,39448.0,0.005183]
[1646425196349,0.015549,39446.0,39442.0,0.005185]
[1646425196554,0.015549,39446.0,39441.0,0.00017898]
[1646425196555,0.372917,39445.0,39441.0,0.00017898]
[1646425196754,0.015549,39446.0,39441.0,0.00017898]
[1646425196755,0.372917,39443.0,39441.0,0.00017898]
[1646425196952,0.30347898,39442.0,39441.0,0.00017898]
[1646425197251,0.00035795,39439.0,39430.0,0.003]
[1646425197451,1.47073791,39438.0,39425.0,0.05]
[1646425197650,0.07122963,39428.0,39425.0,0.05]
[1646425197850,0.94466331,39427.0,39425.0,0.05]
[1646425198050,0.30347898,39426.0,39425.0,0.05]
[1646425198249,0.92549855,39426.0,39418.0,0.2]
[1646425198456,0.92549855,39426.0,39408.0,0.013847]
[1646425198457,0.7575,39417.0,39408.0,0.013847]
[1646425198651,0.372917,39418.0,39408.0,0.013847]
[1646425198652,0.73990298,39416.0,39408.0,0.013847]
[1646425198849,0.31735284,39415.0,39408.0,0.013847]
[1646425199149,0.67639598,39414.0,39408.0,0.013847]
[1646425199356,0.67639598,39414.0,39401.0,0.00225]
[1646425199357,0.01592282,39417.0,39413.0,0.2]
[1646425199552,0.39069177,39416.0,39413.0,0.2]
[1646425199755,0.39069177,39416.0,39401.0,0.00225]
[1646425199756,0.02505,39412.0,39401.0,0.00225]
[1646425200035,0.02505,39412.0,39405.0,0.00881]
[1646425200036,0.77182,39406.0,39405.0,0.00881]
[1646425200235,0.387237,39406.0,39405.0,0.00881]
[1646425200430,0.78803018,39406.0,39405.0,0.00881]
[1646425200632,0.78803018,39406.0,39401.0,0.00225]
[1646425200633,0.16352,39404.0,39401.0,0.00225]
[1646425200834,0.16352,39400.0,39370.0,0.702996]
[1646425201035,0.01432,39391.0,39374.0,0.063524]
[1646425201234,0.01476121,39386.0,39374.0,0.053524]
[1646425201431,0.01476121,39386.0,39372.0,0.70327315]
[1646425201432,0.28062404,39380.0,39372.0,0.70327315]
[1646425201635,0.28062404,39380.0,39370.0,0.0011]
[1646425201636,0.372917,39378.0,39370.0,0.0011]
[1646425201835,0.30347898,39377.0,39370.0,0.0011]
[1646425202033,0.01672844,39379.0,39370.0,0.0011]
[1646425202034,0.15,39375.0,39370.0,0.0021]
[1646425202235,0.372917,39376.0,39370.0,0.0021]
[1646425202236,0.15,39372.0,39370.0,0.0021]
[1646425202434,0.67639598,39371.0,39370.0,0.0021]
[1646425202637,0.02694705,39373.0,39370.0,0.0021]
[1646425202638,0.01438334,39373.0,39370.0,0.0021]
[1646425202836,0.01531042,39371.0,39370.0,0.0021]
[1646425203033,0.01531042,39371.0,39370.0,0.007427]
[1646425203233,0.00531042,39371.0,39370.0,0.005427]
[1646425203435,0.00531042,39371.0,39364.0,0.00013099]
[1646425203436,0.37825542,39371.0,39364.0,0.00013099]
[1646425203669,0.7575,39369.0,39364.0,0.00013099]
[1646425203862,0.7575,39369.0,39349.0,0.003]
[1646425203863,0.73963,39364.0,39349.0,0.003]
[1646425204061,0.73963,39362.0,39349.0,0.003]
[1646425204262,1.422945,39357.0,39344.0,0.00083445]
[1646425204463,0.03071206,39359.0,39344.0,0.00083445]
[1646425204464,1.130445,39352.0,39344.0,0.00083445]
[1646425204662,0.01545612,39353.0,39344.0,0.00083445]
[1646425204663,0.01545612,39353.0,39350.0,0.22143557]
[1646425205059,0.11011728,39359.0,39349.0,6.617e-05]
[1646425205060,0.0149958,39352.0,39349.0,6.617e-05]
[1646425205262,0.372945,39351.0,39349.0,6.617e-05]
[1646425205461,0.372945,39351.0,39330.0,0.14808915]
[1646425205462,0.01510848,39349.0,39330.0,0.14808915]
[1646425205663,0.50173702,39331.0,39330.0,0.14808915]
[1646425205862,0.01664106,39331.0,39330.0,0.13808915]
[1646425206062,0.05151658,39348.0,39330.0,0.13308915]
[1646425206262,0.05151658,39348.0,39330.0,0.03877681]
[1646425206458,0.36859391,39349.0,39330.0,0.03877681]
[1646425206459,0.12879202,39339.0,39330.0,0.03877681]
[1646425206670,0.27799202,39331.0,39313.0,0.00154166]
[1646425206864,0.27799202,39331.0,39311.0,0.95643686]
[1646425206865,0.12879202,39314.0,39311.0,0.95643686]
[1646425207070,0.12879202,39314.0,39300.0,0.04113137]
[1646425207071,1.44039022,39311.0,39300.0,0.04113137]
[1646425207418,1.44039022,39311.0,39287.0,0.2]
[1646425207419,2.97522756,39299.0,39280.0,0.36196343]
[1646425207622,0.43122409,39281.0,39280.0,0.36196343]
[1646425207819,0.81621016,39281.0,39280.0,0.36196343]
[1646425208015,0.81621016,39281.0,39280.0,0.34696343]
[1646425208016,0.51273118,39281.0,39280.0,0.34696343]
[1646425208213,0.372956,39280.0,39277.0,0.000695]
[1646425208412,0.372956,39280.0,39274.0,0.0037039]
[1646425208413,0.41613118,39279.0,39274.0,0.0037039]
[1646425208613,0.30347898,39279.0,39274.0,0.0037039]
[1646425208816,0.41613118,39275.0,39274.0,3.9e-06]
[1646425209013,0.41613118,39275.0,39267.0,0.0002]
[1646425209014,0.76621016,39275.0,39267.0,0.0002]
[1646425209215,0.01419022,39274.0,39267.0,0.0002]
[1646425209414,0.15,39296.0,39267.0,0.0002]
[1646425209415,0.163712,39298.0,39289.0,0.2]
[1646425209716,0.163712,39298.0,39267.0,0.0002]
[1646425209717,0.372978,39298.0,39273.0,1.4]
[1646425210017,0.03756777,39299.0,39292.0,0.15237259]
[1646425210018,0.5,39299.0,39292.0,0.15237259]
[1646425210225,0.15,39314.0,39292.0,0.15237259]
[1646425210226,0.37830138,39312.0,39293.0,0.372978]
[1646425210415,0.37830138,39312.0,39292.0,0.15237259]
[1646425210416,0.05,39316.0,39294.0,1.772978]
[1646425210616,0.045,39316.0,39295.0,0.30347898]
[1646425210815,0.67645698,39315.0,39288.0,0.0466]
[1646425211015,0.01320766,39344.0,39289.0,0.30347898]
[1646425211016,0.372978,39314.0,39289.0,0.30347898]
[1646425211261,0.372978,39314.0,39277.0,0.15]
[1646425211262,0.01331816,39312.0,39308.0,0.2]
[1646425211461,0.39993789,39301.0,39299.0,0.30347898]
[1646425211660,0.39993789,39301.0,39296.0,0.0466]
[1646425211860,0.39993789,39301.0,39278.0,0.15]
[1646425211861,0.372978,39300.0,39278.0,0.15]
[1646425212059,0.30347898,39299.0,39290.0,0.26589766]
[1646425212257,0.39993789,39301.0,39292.0,0.15]
[1646425212457,0.39993789,39301.0,39293.0,0.372978]
[1646425212657,0.39993789,39301.0,39294.0,0.23596702]
[1646425212856,0.39993789,39301.0,39300.0,0.15170431]
[1646425213056,0.39993789,39301.0,39300.0,0.72958797]
[1646425213259,0.06567266,39312.0,39302.0,1.4]
[1646425213459,0.06567266,39312.0,39303.0,0.0466]
[1646425213760,0.03765741,39332.0,39303.0,0.0466]
[1646425213761,0.008739,39333.0,39308.0,0.15]
[1646425213959,0.008739,39333.0,39314.0,0.37282]
[1646425213960,0.01323816,39326.0,39314.0,0.37282]
[1646425214160,0.01323816,39326.0,39315.0,0.26948146]
[1646425214358,0.008739,39333.0,39320.0,0.372757]
[1646425214559,0.01323816,39352.0,39328.0,0.15]
[1646425214761,0.01323816,39352.0,39321.0,0.72281898]
[1646425214762,0.01323816,39352.0,39334.0,0.582]
[1646425215012,0.01323816,39352.0,39333.0,0.15]
[1646425215013,0.02071616,39352.0,39342.0,0.582]
[1646425215210,0.39369416,39352.0,39351.0,0.21967059]
[1646425215409,0.39369416,39352.0,39341.0,0.582]
[1646425215410,0.01197716,39352.0,39341.0,0.582]
[1646425215611,0.05,39364.0,39344.0,0.01030375]
[1646425215612,0.372978,39351.0,39344.0,0.01030375]
[1646425215810,0.372978,39351.0,39344.0,0.00010376]
[1646425216611,0.372978,39351.0,39345.0,0.25379909]
[1646425216916,0.01125324,39363.0,39345.0,0.25379909]
[1646425216917,0.01125324,39363.0,39358.0,0.13375768]
[1646425217113,0.05,39364.0,39345.0,0.11473533]
[1646425217313,0.14,39360.0,39346.0,0.0466]
[1646425217511,0.05,39364.0,39347.0,0.07033032]
[1646425217712,0.05,39364.0,39348.0,0.35007898]
[1646425217911,0.05,39364.0,39345.0,0.12547575]
[1646425217912,0.388853,39363.0,39361.0,0.32431617]
[1646425218215,0.01509338,39374.0,39350.0,0.31356611]
[1646425218216,0.01439551,39362.0,39350.0,0.31356611]
[1646425218411,0.01269694,39371.0,39344.0,0.01170679]
[1646425218652,0.05,39365.0,39344.0,0.01170679]
[1646425218851,0.05,39365.0,39348.0,0.00822149]
[1646425218852,0.30144684,39364.0,39348.0,0.00822149]
[1646425219152,0.05,39365.0,39350.0,0.25971585]
[1646425219153,0.01455674,39357.0,39350.0,0.25971585]
[1646425219351,0.01441814,39364.0,39351.0,0.34704212]
[1646425219558,0.05,39365.0,39355.0,0.15]
[1646425219559,0.01365401,39363.0,39355.0,0.15]
[1646425219754,0.05,39365.0,39356.0,0.72863256]
[1646425219956,0.06613724,39365.0,39357.0,0.4374845]
[1646425220158,0.01758003,39371.0,39358.0,0.50628098]
[1646425220359,0.26923717,39386.0,39360.0,0.372311]
[1646425220556,0.0094675,39371.0,39366.0,0.15]
[1646425220757,0.26923717,39386.0,39367.0,0.71928112]
[1646425221057,0.45596,39400.0,39374.0,0.05802592]
[1646425221058,0.01595735,39384.0,39374.0,0.05802592]
[1646425221257,0.01397034,39398.0,39375.0,0.34704212]
[1646425221572,0.06201276,39399.0,39369.0,0.932]
[1646425221573,4.59e-06,39371.0,39369.0,0.932]
[1646425221756,0.01714373,39396.0,39370.0,2.36412957]
[1646425221959,0.01634949,39395.0,39377.0,0.313495]
[1646425222162,0.0570689,39399.0,39393.0,0.05802051]
[1646425222163,0.01669936,39394.0,39393.0,0.05802051]
[1646425222406,0.0570689,39399.0,39393.0,0.4731351]
[1646425222603,0.0570689,39399.0,39394.0,0.31498652]
[1646425222604,6.89e-05,39399.0,39394.0,0.31498652]
[1646425222804,0.01421698,39404.0,39400.0,0.24031974]
[1646425223005,0.01421698,39404.0,39401.0,0.116933]
[1646425223205,0.2734333,39412.0,39401.0,0.116933]
[1646425223411,0.01618202,39410.0,39403.0,0.070322]
[1646425223606,0.6448,39430.0,39404.0,0.0466]
[1646425223607,0.15,39416.0,39404.0,0.0466]
[1646425223805,0.0049323,39425.0,39404.0,0.0466]
[1646425224006,0.01670697,39417.0,39405.0,0.43420012]
[1646425224209,0.01199994,39436.0,39406.0,0.0466]
[1646425224210,0.15,39433.0,39406.0,0.0466]
[1646425224409,0.08003516,39432.0,39422.0,0.26509963]
[1646425224607,0.37276,39431.0,39423.0,0.0466]
[1646425224815,0.01633856,39421.0,39419.0,0.0466]
[1646425225007,0.52276,39420.0,39419.0,0.0466]
[1646425225309,0.52276,39420.0,39403.0,0.0466]
[1646425225310,0.2,39416.0,39403.0,0.0466]
[1646425225608,0.15,39408.0,39398.0,0.070337]
[1646425225808,0.01500237,39407.0,39399.0,0.070335]
[1646425226006,0.1999,39412.0,39400.0,0.07033]
[1646425226007,0.3,39411.0,39400.0,0.07033]
[1646425226259,0.01585668,39410.0,39401.0,0.070327]
[1646425226457,0.01585668,39410.0,39396.0,0.13113494]
[1646425226659,0.31585668,39410.0,39403.0,0.29465255]
[1646425226860,0.05,39410.0,39403.0,0.29465255]
[1646425227058,0.01349931,39408.0,39403.0,0.29465255]
[1646425227258,0.1998,39404.0,39403.0,0.29465255]
[1646425227861,0.01479767,39408.0,39403.0,0.29465255]
[1646425228165,0.372755,39403.0,39372.0,0.847795]
[1646425228363,0.15,39404.0,39382.0,0.2279]
[1646425228364,0.372755,39389.0,39382.0,0.2279]
[1646425228563,0.01405228,39388.0,39370.0,0.4751]
[1646425228762,0.15,39381.0,39375.0,0.18602932]
[1646425228963,0.522755,39376.0,39375.0,0.18602932]
[1646425229363,1.072755,39376.0,39375.0,0.18602932]
[1646425229561,1.072755,39376.0,39362.0,0.4905]
[1646425229562,0.372755,39374.0,39362.0,0.4905]
[1646425229769,0.15,39363.0,39362.0,0.4905]
[1646425230041,0.522755,39363.0,39362.0,0.001]
[1646425230244,1.109355,39363.0,39344.0,0.00010376]
[1646425230441,0.84370063,39345.0,39344.0,0.00010376]
[1646425230645,1.36166063,39345.0,39344.0,0.00010376]
[1646425230946,1.65166063,39345.0,39344.0,0.00010376]
[1646425231143,1.30086063,39345.0,39344.0,0.00010376]
[1646425231345,0.07273756,39337.0,39329.0,4.79973152]
[1646425231538,0.22881508,39344.0,39328.0,0.01460894]
[1646425231539,0.2,39330.0,39328.0,0.01460894]
[1646425231742,0.3,39329.0,39328.0,0.01460894]
[1646425231938,0.364735,39329.0,39328.0,0.01460894]
[1646425232138,0.718355,39329.0,39328.0,0.01460894]
[1646425232340,0.78407158,39329.0,39328.0,0.01460894]
[1646425232543,0.78507158,39329.0,39328.0,0.01460894]
[1646425232744,1.03507158,39329.0,39328.0,0.01360894]
[1646425232940,0.372755,39328.0,39312.0,0.2]
[1646425233141,0.372755,39328.0,39310.0,0.001]
[1646425233142,0.372755,39312.0,39310.0,0.001]
[1646425233339,0.822755,39311.0,39310.0,0.001]
[1646425233540,0.822755,39311.0,39292.0,0.9437]
[1646425233541,0.372755,39310.0,39299.0,0.31933892]
[1646425233760,0.372755,39310.0,39305.0,0.32671084]
[1646425233957,0.3,39317.0,39303.0,0.001]
[1646425234159,0.15,39321.0,39303.0,0.001]
[1646425234160,0.0427,39321.0,39303.0,0.001]
[1646425234357,0.15,39325.0,39303.0,0.001]
[1646425234557,0.15,39325.0,39320.0,0.12980762]
[1646425234758,0.1,39329.0,39320.0,0.12980762]
[1646425234759,0.00031127,39331.0,39320.0,0.12980762]
[1646425234956,0.26262502,39331.0,39320.0,0.12980762]
[1646425235356,0.00031127,39331.0,39320.0,0.12980762]
[1646425235555,0.00031127,39331.0,39326.0,0.15672538]
[1646425235758,0.00031127,39331.0,39316.0,0.2330699]
[1646425235956,0.00031127,39331.0,39308.0,0.01521094]
[1646425235957,0.00031127,39331.0,39308.0,0.33505]
[1646425236156,0.00031127,39331.0,39309.0,1.0]
[1646425236360,0.00031127,39331.0,39326.0,0.27372698]
[1646425236757,0.00031127,39331.0,39312.0,0.406298]
[1646425236758,1.27e-06,39331.0,39312.0,0.106298]
[1646425236960,1.27e-06,39331.0,39311.0,0.01683301]
[1646425236961,1.27e-06,39331.0,39325.0,0.05005]
[1646425237158,1.27e-06,39331.0,39327.0,1.01257465]
[1646425237409,1.27e-06,39331.0,39330.0,1.0]
[1646425237608,1.27e-06,39331.0,39330.0,1.3427]
[1646425237810,1.27e-06,39331.0,39330.0,0.3427]
[1646425238009,1.27e-06,39331.0,39322.0,0.1]
[1646425238207,1.27e-06,39331.0,39324.0,1.0]
[1646425238406,0.29500127,39348.0,39327.0,1.0]
[1646425238606,0.29500127,39348.0,39328.0,1.01572438]
[1646425238806,0.29500127,39348.0,39338.0,0.23156015]
[1646425239007,0.2765416,39350.0,39345.0,0.20395084]
[1646425239307,0.61185252,39342.0,39339.0,0.15056431]
[1646425239708,0.3,39341.0,39329.0,0.4596]
[1646425239912,0.01311654,39340.0,39306.0,1.5985]
[1646425240111,0.01321643,39340.0,39325.0,0.22633996]
[1646425240315,0.60185252,39342.0,39325.0,0.22633996]
[1646425240511,0.60185252,39342.0,39326.0,0.02505]
[1646425240711,0.3,39341.0,39332.0,0.38550995]
[1646425240911,0.60185252,39342.0,39332.0,0.25792539]
[1646425241161,0.60185252,39342.0,39337.0,0.24695551]
[1646425241358,0.60185252,39342.0,39338.0,0.3]
[1646425241359,0.60045856,39342.0,39338.0,0.3]
[1646425241558,0.02348653,39356.0,39338.0,0.37946176]
[1646425241759,0.02348653,39356.0,39354.0,0.26543943]
[1646425241760,0.009,39356.0,39354.0,0.26543943]
[1646425242360,0.009,39356.0,39355.0,0.24538424]
[1646425242761,0.009,39356.0,39338.0,0.4596]
[1646425242762,0.159,39356.0,39338.0,0.4596]
[1646425242964,0.31729602,39355.0,39338.0,0.4596]
[1646425243166,0.009,39356.0,39338.0,0.4596]
[1646425243167,0.16030738,39353.0,39338.0,0.4596]
[1646425243361,0.3,39352.0,39338.0,0.4596]
[1646425243559,0.3,39355.0,39338.0,0.4596]
[1646425243763,0.154,39356.0,39355.0,0.23806637]
[1646425243764,0.009,39356.0,39355.0,0.23806637]
[1646425244160,0.00492534,39369.0,39355.0,0.23806637]
[1646425244363,0.00492534,39369.0,39356.0,0.32505]
[1646425244562,0.01606728,39369.0,39356.0,0.02505]
[1646425244764,0.23726869,39383.0,39356.0,0.02505]
[1646425244765,0.01755831,39373.0,39368.0,0.23136125]
[1646425245008,0.19,39385.0,39362.0,0.27512668]
[1646425245009,0.46272249,39363.0,39362.0,0.27512668]
[1646425245612,0.45772249,39363.0,39362.0,0.27512668]
[1646425245816,0.145,39381.0,39363.0,0.61161484]
[1646425246013,0.145,39381.0,39374.0,0.30408454]
[1646425246217,0.145,39381.0,39364.0,0.0427]
[1646425246413,0.3,39380.0,39367.0,0.02505]
[1646425246615,0.3,39380.0,39369.0,0.02505]
[1646425246813,0.3,39380.0,39375.0,0.24119626]
[1646425247013,0.145,39379.0,39368.0,0.0427]
[1646425247213,0.31447291,39380.0,39362.0,0.0427]
[1646425247214,0.3,39378.0,39362.0,0.0427]
[1646425247413,0.01447291,39380.0,39362.0,0.0427]
[1646425247414,0.145,39371.0,39362.0,0.0427]
[1646425247618,0.145,39366.0,39362.0,0.0427]
[1646425247813,0.2611448,39368.0,39352.0,0.4591]
[1646425247814,0.00022492,39356.0,39352.0,0.5018]
[1646425248016,0.00022492,39356.0,39352.0,0.4591]
[1646425248213,0.00022492,39356.0,39340.0,6.233e-05]
[1646425248214,0.145,39354.0,39340.0,6.233e-05]
[1646425248417,0.01420727,39352.0,39340.0,6.233e-05]
[1646425248652,0.28393897,39351.0,39342.0,0.31798675]
[1646425248850,0.01510864,39347.0,39342.0,0.31798675]
[1646425249052,0.01510864,39347.0,39346.0,0.15577388]
[1646425249252,0.145,39353.0,39342.0,0.31798675]
[1646425249253,0.01421147,39346.0,39342.0,0.31798675]
[1646425249552,0.29785519,39352.0,39342.0,0.31798675]
[1646425249751,0.195,39353.0,39349.0,0.27977307]
[1646425249952,0.145,39352.0,39349.0,0.27977307]
[1646425250255,0.05,39353.0,39349.0,0.27977307]
[1646425250452,0.14522492,39356.0,39349.0,0.27977307]
[1646425250658,0.05022492,39356.0,39349.0,0.27977307]
[1646425251052,0.57226517,39363.0,39346.0,0.28508269]
[1646425251251,0.145,39360.0,39346.0,0.28508269]
[1646425251450,0.3,39359.0,39346.0,0.28508269]
[1646425251652,0.19,39356.0,39346.0,0.28508269]
[1646425251850,0.445,39355.0,39350.0,0.15844015]
[1646425252052,0.19,39356.0,39351.0,0.25134827]
[1646425252253,0.195,39355.0,39351.0,0.25134827]
[1646425252901,0.145,39355.0,39352.0,0.24795457]
[1646425253099,0.145,39355.0,39351.0,0.25134827]
[1646425253699,0.145,39359.0,39351.0,0.25134827]
[1646425253903,9.0,39363.0,39351.0,0.25134827]
[1646425254103,9.0,39363.0,39357.0,0.15245728]
[1646425254302,9.0,39363.0,39351.0,0.25134827]
[1646425254502,0.3,39362.0,39357.0,0.2445912]
[1646425254703,9.0,39363.0,39357.0,0.2445912]
[1646425254902,8.9995586,39363.0,39357.0,0.2445912]
[1646425255103,0.3,39362.0,39357.0,0.2445912]
[1646425255302,8.9995586,39363.0,39357.0,0.2445912]
[1646425255502,0.05,39362.0,39345.0,0.44485889]